{"text_format":"1","workbook":"xlsx","n_sheets":7,"sheets":["انسولين الهيئة","انسولين الطلاب والرضع","الأصناف","تصدير","تقاريرانسولين الهيئة","تقارير انسولين الطلاب والرضع","تقارير الاصناف"],"not_rendered":{"charts":0,"images":0,"macros":1,"external_links":0,"defined_names":0,"comments":0,"pivot_tables":0},"unopened":[],"bounds":{"document_bytes":16777216,"sheet_cells":100000,"rows_first":2000,"rows_last":500,"rows_between":2000,"halvings":0,"cell_chars":16384,"cell_head_chars":4096},"cells_cut":0,"cells_raw":0,"read":"whole","date_system":"1900"}

{"sheet":"انسولين الهيئة","index":0,"n_rows":26,"n_cols":10,"rows_kept":26,"cut":false,"hidden":false,"merged":[[1,8,1,9],[0,0,0,9],[1,0,2,0],[1,1,2,1],[1,2,1,3],[1,4,1,5],[1,6,1,7]]}
["انسولين الهيئة"]
["اسم الصنف","الوحدة","M1",null,"M2",null,"M3",null,"Total"]
[null,null,"الكمية ","عدد الحالات ","الكمية ","عدد الحالات ","الكمية ","عدد الحالات ","الكمية ","عدد الحالات "]
["انسولين مكستارد 100وحدة ","فيال ",0,0,0,0,0,0,{"$f":"C4+E4+G4","v":0},{"$f":"D4+F4+H4","v":0}]
["انسولين اتش ميكس 100وحدة ","فيال ",0,0,0,0,0,0,{"$f":"C5+E5+G5","v":0},0]
[" انسيومان كومب  100وحدة ","فيال ",0,0,0,0,0,0,0,0]
["انسولينا جيت 100 وحدة","فيال ",942,297,619,207,810,270,2371,774]
["انسولين لانتوس 100 وحدة","فيال ",176,21,20,5,35,7,231,33]
["انسولين هيمولين  100وحدة ","فيال ",0,0,0,0,0,0,0,0]
["انسولين رابيد بنفيل","خرطوشة",0,0,0,0,0,0,0,0]
["انسولين بازل بنفيل","خرطوشة",0,0,0,0,0,0,0,0]
["انسولين كومب بنفيل","خرطوشة",0,0,0,0,0,0,0,0]
["انسولين مكستارد بنفيل","خرطوشة",null,null,null,null,null,null,{"$f":"C15+E13+G13","v":0},{"$f":"D15+F13+H13","v":0}]
["انسولين اكترابيد بنفيل","خرطوشة",43,7,28,3,24,2,95,12]
["انسولين انسوليتارد بنفيل","خرطوشة",0,0,0,0,0,0,0,0]
["انسولين مكستارد بنفيل","خرطوشة",344,30,166,14,63,6,573,50]
[null,null,null,null,null,null,null,null,0,0]
[null,null,null,null,null,null,null,null,0,0]
[null,null,null,null,null,null,null,null,0,0]
[null,null,null,null,null,null,null,null,0,0]
[null,null,null,null,null,null,null,null,0,0]
[null,null,null,null,null,null,null,null,0,0]
[null,null,null,null,null,null,null,null,0,0]
[null,null,null,null,null,null,null,null,0,0]
[null,null,null,null,null,null,null,null,0,0]
[null,null,null,null,null,null,null,null,0,0]

{"sheet":"انسولين الطلاب والرضع","index":1,"n_rows":26,"n_cols":10,"rows_kept":26,"cut":false,"hidden":false,"merged":[[0,0,0,9],[1,8,1,9],[1,0,2,0],[1,1,2,1],[1,2,1,3],[1,4,1,5],[1,6,1,7]]}
["انسولين الطلاب والرضع"]
["اسم الصنف","الوحدة","M1",null,"M2",null,"M3",null,"Total"]
[null,null,"الكمية ","عدد الحالات ","الكمية ","عدد الحالات ","الكمية ","عدد الحالات ","الكمية ","عدد الحالات "]
["انسولين مكستارد 100وحدة ","فيال ",0,0,0,0,0,0,{"$f":"C4+E4+G4","v":0},{"$f":"D4+F4+H4","v":0}]
["انسولين اتش ميكس 100وحدة ","فيال ",0,0,0,0,0,0,{"$f":"C5+E5+G5","v":0},0]
[" انسيومان كومب  100وحدة ","فيال ",0,0,0,0,0,0,0,0]
["انسولينا جيت 100 وحدة","فيال ",7,2,17,5,9,3,33,10]
["انسولين لانتوس 100 وحدة","فيال ",306,87,266,52,239,60,811,199]
["انسولين هيمولين  100وحدة ","فيال ",0,0,0,0,0,0,0,0]
["انسولين رابيد بنفيل","خرطوشة",0,0,0,0,0,0,0,0]
["انسولين بازل بنفيل","خرطوشة",0,0,0,0,0,0,0,0]
["انسولين كومب بنفيل","خرطوشة",0,0,0,0,0,0,0,0]
["انسولين مكستارد بنفيل","خرطوشة",142,14,149,19,72,12,363,45]
["انسولين اكترابيد بنفيل","خرطوشة",258,35,232,29,306,39,796,103]
["انسولين انسوليتارد بنفيل","خرطوشة",15,3,16,2,29,4,60,9]
[null,null,null,null,null,null,null,null,0,0]
[null,null,null,null,null,null,null,null,0,0]
[null,null,null,null,null,null,null,null,0,0]
[null,null,null,null,null,null,null,null,0,0]
[null,null,null,null,null,null,null,null,0,0]
[null,null,null,null,null,null,null,null,0,0]
[null,null,null,null,null,null,null,null,0,0]
[null,null,null,null,null,null,null,null,0,0]
[null,null,null,null,null,null,null,null,0,0]
[null,null,null,null,null,null,null,null,0,0]
[null,null,null,null,null,null,null,null,0,0]

{"sheet":"الأصناف","index":2,"n_rows":18,"n_cols":5,"rows_kept":18,"cut":false,"hidden":false,"merged":[[1,0,2,0],[1,1,2,1],[1,2,1,4],[0,0,0,4]]}
["الأصناف"]
["اسم الصنف","الوحدة","Statment"]
[null,null,"الكمية المنصرفة","عدد الحالات","اجمالى التكلفة "]
["هرمون النمو","فيال",1685,123,136485]
["اكسى جاد 125مجم","شريط × 7قرص",0,0,0]
["اكسى جاد 250مجم","شريط × 7قرص",56,4,7466.69]
["اكسى جاد 500مجم","شريط × 7قرص",50,4,12916.63]
["ديسفيرال","فيال",0,0,0]
["فيريبروكس","زجاجة",0,0,0]
["كيلفر","ع×50ك",0,0,0]
["ريبافيرين200مجم","شريط × 6ك",226,16,888.18]
["ريبافيرين400مجم","شريط × 6ك",0,0,0]
["جادينيو90مجم","ش×10ق",63,11,6225.03]
["جادينيو180مجم","ش×10ق",93,23,17714.259999999998]
["جادينيو360مجم","ش×10ق",135,30,49821.3]
["جلينيا","ع×28ق",1,1,6900.0119999999997]
["هرمون النمو","فيال",127,6,8801.1]
["جادينيو360مجم","ش×10ق"]

{"sheet":"تصدير","index":3,"n_rows":0,"n_cols":0,"rows_kept":0,"cut":false,"hidden":false,"merged":[]}

{"sheet":"تقاريرانسولين الهيئة","index":4,"n_rows":18,"n_cols":11,"rows_kept":18,"cut":false,"hidden":false,"merged":[[0,1,0,10],[1,9,1,10],[15,1,15,2],[15,3,15,4],[15,5,15,6],[15,7,15,8],[15,9,15,10],[1,3,1,4],[1,5,1,6],[1,7,1,8]]}
[null,"بيان بإحصائيات صرف الأنسولين لصيدليات الهيئة عن شهر "]
["م","الصنف","الوحدة","M1",null,"M2",null,"M3",null,"الإجمالى"]
[null,null,null,"كمية","عدد حالات","كمية","عدد حالات","كمية","عدد حالات","كمية","عدد حالات"]
[1,"انسولين مكستارد 100وحدة ","فيال ",{"$f":"'انسولين الهيئة'!C4","v":0},{"$f":"'انسولين الهيئة'!D4","v":0},{"$f":"'انسولين الهيئة'!E4","v":0},{"$f":"'انسولين الهيئة'!F4","v":0},{"$f":"'انسولين الهيئة'!G4","v":0},{"$f":"'انسولين الهيئة'!H4","v":0},{"$f":"'انسولين الهيئة'!I4","v":0},{"$f":"'انسولين الهيئة'!J4","v":0}]
[2,"انسولين اتش ميكس 100وحدة ","فيال ",{"$f":"'انسولين الهيئة'!C5","v":0},{"$f":"'انسولين الهيئة'!D5","v":0},{"$f":"'انسولين الهيئة'!E5","v":0},{"$f":"'انسولين الهيئة'!F5","v":0},{"$f":"'انسولين الهيئة'!G5","v":0},{"$f":"'انسولين الهيئة'!H5","v":0},{"$f":"'انسولين الهيئة'!I5","v":0},{"$f":"'انسولين الهيئة'!J5","v":0}]
[3," انسيومان كومب  100وحدة ","فيال ",{"$f":"'انسولين الهيئة'!C6","v":0},{"$f":"'انسولين الهيئة'!D6","v":0},{"$f":"'انسولين الهيئة'!E6","v":0},{"$f":"'انسولين الهيئة'!F6","v":0},{"$f":"'انسولين الهيئة'!G6","v":0},{"$f":"'انسولين الهيئة'!H6","v":0},{"$f":"'انسولين الهيئة'!I6","v":0},{"$f":"'انسولين الهيئة'!J6","v":0}]
[4,"انسولينا جيت 100 وحدة","فيال ",{"$f":"'انسولين الهيئة'!C7","v":942},{"$f":"'انسولين الهيئة'!D7","v":297},{"$f":"'انسولين الهيئة'!E7","v":619},{"$f":"'انسولين الهيئة'!F7","v":207},{"$f":"'انسولين الهيئة'!G7","v":810},{"$f":"'انسولين الهيئة'!H7","v":270},{"$f":"'انسولين الهيئة'!I7","v":2371},{"$f":"'انسولين الهيئة'!J7","v":774}]
[5,"انسولين لانتوس 100 وحدة","خرطوشة",{"$f":"'انسولين الهيئة'!C8","v":176},{"$f":"'انسولين الهيئة'!D8","v":21},{"$f":"'انسولين الهيئة'!E8","v":20},{"$f":"'انسولين الهيئة'!F8","v":5},{"$f":"'انسولين الهيئة'!G8","v":35},{"$f":"'انسولين الهيئة'!H8","v":7},{"$f":"'انسولين الهيئة'!I8","v":231},{"$f":"'انسولين الهيئة'!J8","v":33}]
[6,"انسولين هيمولين  100وحدة ","فيال ",{"$f":"'انسولين الهيئة'!C9","v":0},{"$f":"'انسولين الهيئة'!D9","v":0},{"$f":"'انسولين الهيئة'!E9","v":0},{"$f":"'انسولين الهيئة'!F9","v":0},{"$f":"'انسولين الهيئة'!G9","v":0},{"$f":"'انسولين الهيئة'!H9","v":0},{"$f":"'انسولين الهيئة'!I9","v":0},{"$f":"'انسولين الهيئة'!J9","v":0}]
[7,"انسولين رابيد بنفيل","خرطوشة",{"$f":"'انسولين الهيئة'!C10","v":0},{"$f":"'انسولين الهيئة'!D10","v":0},{"$f":"'انسولين الهيئة'!E10","v":0},{"$f":"'انسولين الهيئة'!F10","v":0},{"$f":"'انسولين الهيئة'!G10","v":0},{"$f":"'انسولين الهيئة'!H10","v":0},{"$f":"'انسولين الهيئة'!I10","v":0},{"$f":"'انسولين الهيئة'!J10","v":0}]
[8,"انسولين بازل بنفيل","خرطوشة",{"$f":"'انسولين الهيئة'!C11","v":0},{"$f":"'انسولين الهيئة'!D11","v":0},{"$f":"'انسولين الهيئة'!E11","v":0},{"$f":"'انسولين الهيئة'!F11","v":0},{"$f":"'انسولين الهيئة'!G11","v":0},{"$f":"'انسولين الهيئة'!H11","v":0},{"$f":"'انسولين الهيئة'!I11","v":0},{"$f":"'انسولين الهيئة'!J11","v":0}]
[9,"انسولين كومب بنفيل","خرطوشة",{"$f":"'انسولين الهيئة'!C12","v":0},{"$f":"'انسولين الهيئة'!D12","v":0},{"$f":"'انسولين الهيئة'!E12","v":0},{"$f":"'انسولين الهيئة'!F12","v":0},{"$f":"'انسولين الهيئة'!G12","v":0},{"$f":"'انسولين الهيئة'!H12","v":0},{"$f":"'انسولين الهيئة'!I12","v":0},{"$f":"'انسولين الهيئة'!J12","v":0}]
[10,"انسولين مكستارد بنفيل","خرطوشة",{"$f":"'انسولين الهيئة'!C13","v":0},{"$f":"'انسولين الهيئة'!D13","v":0},{"$f":"'انسولين الهيئة'!E13","v":0},{"$f":"'انسولين الهيئة'!F13","v":0},{"$f":"'انسولين الهيئة'!G13","v":0},{"$f":"'انسولين الهيئة'!H13","v":0},{"$f":"'انسولين الهيئة'!I13","v":0},{"$f":"'انسولين الهيئة'!J13","v":0}]
[11,"انسولين اكترابيد بنفيل","خرطوشة",{"$f":"'انسولين الهيئة'!C14","v":43},{"$f":"'انسولين الهيئة'!D14","v":7},{"$f":"'انسولين الهيئة'!E14","v":28},{"$f":"'انسولين الهيئة'!F14","v":3},{"$f":"'انسولين الهيئة'!G14","v":24},{"$f":"'انسولين الهيئة'!H14","v":2},{"$f":"'انسولين الهيئة'!I14","v":95},{"$f":"'انسولين الهيئة'!J14","v":12}]
[12,"انسولين انسوليتارد بنفيل","خرطوشة",{"$f":"'انسولين الهيئة'!C15","v":0},{"$f":"'انسولين الهيئة'!D15","v":0},{"$f":"'انسولين الهيئة'!E15","v":0},{"$f":"'انسولين الهيئة'!F15","v":0},{"$f":"'انسولين الهيئة'!G15","v":0},{"$f":"'انسولين الهيئة'!H15","v":0},{"$f":"'انسولين الهيئة'!I15","v":0},{"$f":"'انسولين الهيئة'!J15","v":0}]
[null,"اجمالى الانسولين فيال وخراطيش",null,"الهلال",null,"منطقة سوهاج",null,"منطقة جرجا",null,"الإجمالى"]
[null,"انسولين 100 وحدة","فيال ",{"$f":"D4+D5+D6+D7+D9","v":942},297,619,207,{"$f":"H4+H5+H6+H7+H9","v":810},{"$f":"I4+I5+I6+I7+I9","v":270},{"$f":"J4+J5+J6+J7+J8+J9","v":2602},{"$f":"K4+K5+K6+K7+K9","v":774}]
[null,"انسولين بنفل","خرطوشة",{"$f":"D8+D10+D11+D12+D13+D14+D15","v":219},{"$f":"E8+E10+E11+E12+E13+E14+E15","v":28},48,8,59,9,{"$f":"J10+J11+J12+J13+J14+J15","v":95},45]

{"sheet":"تقارير انسولين الطلاب والرضع","index":5,"n_rows":18,"n_cols":11,"rows_kept":18,"cut":false,"hidden":false,"merged":[[0,1,0,10],[1,3,1,4],[1,5,1,6],[1,7,1,8],[1,9,1,10],[15,1,15,2],[15,3,15,4],[15,5,15,6],[15,7,15,8],[15,9,15,10]]}
[null,"بيان بإحصائيات صرف الأنسولين لصيدليات الطلاب والرضع عن شهر "]
["م","الصنف","الوحدة","M1",null,"M2",null,"M3",null,"الإجمالى"]
[null,null,null,"كمية","عدد حالات","كمية","عدد حالات","كمية","عدد حالات","كمية","عدد حالات"]
[1,"انسولين مكستارد 100وحدة ","فيال ",{"$f":"'انسولين الطلاب والرضع'!C4","v":0},{"$f":"'انسولين الطلاب والرضع'!D4","v":0},{"$f":"'انسولين الطلاب والرضع'!E4","v":0},{"$f":"'انسولين الطلاب والرضع'!F4","v":0},{"$f":"'انسولين الطلاب والرضع'!G4","v":0},{"$f":"'انسولين الطلاب والرضع'!H4","v":0},{"$f":"'انسولين الطلاب والرضع'!I4","v":0},{"$f":"'انسولين الطلاب والرضع'!J4","v":0}]
[2,"انسولين اتش ميكس 100وحدة ","فيال ",{"$f":"'انسولين الطلاب والرضع'!C5","v":0},{"$f":"'انسولين الطلاب والرضع'!D5","v":0},{"$f":"'انسولين الطلاب والرضع'!E5","v":0},{"$f":"'انسولين الطلاب والرضع'!F5","v":0},{"$f":"'انسولين الطلاب والرضع'!G5","v":0},{"$f":"'انسولين الطلاب والرضع'!H5","v":0},{"$f":"'انسولين الطلاب والرضع'!I5","v":0},{"$f":"'انسولين الطلاب والرضع'!J5","v":0}]
[3," انسيومان كومب  100وحدة ","فيال ",{"$f":"'انسولين الطلاب والرضع'!C6","v":0},{"$f":"'انسولين الطلاب والرضع'!D6","v":0},{"$f":"'انسولين الطلاب والرضع'!E6","v":0},{"$f":"'انسولين الطلاب والرضع'!F6","v":0},{"$f":"'انسولين الطلاب والرضع'!G6","v":0},{"$f":"'انسولين الطلاب والرضع'!H6","v":0},{"$f":"'انسولين الطلاب والرضع'!I6","v":0},{"$f":"'انسولين الطلاب والرضع'!J6","v":0}]
[4,"انسولينا جيت 100 وحدة","فيال ",{"$f":"'انسولين الطلاب والرضع'!C7","v":7},{"$f":"'انسولين الطلاب والرضع'!D7","v":2},{"$f":"'انسولين الطلاب والرضع'!E7","v":17},{"$f":"'انسولين الطلاب والرضع'!F7","v":5},{"$f":"'انسولين الطلاب والرضع'!G7","v":9},{"$f":"'انسولين الطلاب والرضع'!H7","v":3},{"$f":"'انسولين الطلاب والرضع'!I7","v":33},{"$f":"'انسولين الطلاب والرضع'!J7","v":10}]
[5,"انسولين لانتوس 100 وحدة","خرطوشة",{"$f":"'انسولين الطلاب والرضع'!C8","v":306},{"$f":"'انسولين الطلاب والرضع'!D8","v":87},{"$f":"'انسولين الطلاب والرضع'!E8","v":266},{"$f":"'انسولين الطلاب والرضع'!F8","v":52},{"$f":"'انسولين الطلاب والرضع'!G8","v":239},{"$f":"'انسولين الطلاب والرضع'!H8","v":60},{"$f":"'انسولين الطلاب والرضع'!I8","v":811},{"$f":"'انسولين الطلاب والرضع'!J8","v":199}]
[6,"انسولين هيمولين  100وحدة ","فيال ",{"$f":"'انسولين الطلاب والرضع'!C9","v":0},{"$f":"'انسولين الطلاب والرضع'!D9","v":0},{"$f":"'انسولين الطلاب والرضع'!E9","v":0},{"$f":"'انسولين الطلاب والرضع'!F9","v":0},{"$f":"'انسولين الطلاب والرضع'!G9","v":0},{"$f":"'انسولين الطلاب والرضع'!H9","v":0},{"$f":"'انسولين الطلاب والرضع'!I9","v":0},{"$f":"'انسولين الطلاب والرضع'!J9","v":0}]
[7,"انسولين رابيد بنفيل","خرطوشة",{"$f":"'انسولين الطلاب والرضع'!C10","v":0},{"$f":"'انسولين الطلاب والرضع'!D10","v":0},{"$f":"'انسولين الطلاب والرضع'!E10","v":0},{"$f":"'انسولين الطلاب والرضع'!F10","v":0},{"$f":"'انسولين الطلاب والرضع'!G10","v":0},{"$f":"'انسولين الطلاب والرضع'!H10","v":0},{"$f":"'انسولين الطلاب والرضع'!I10","v":0},{"$f":"'انسولين الطلاب والرضع'!J10","v":0}]
[8,"انسولين بازل بنفيل","خرطوشة",{"$f":"'انسولين الطلاب والرضع'!C11","v":0},{"$f":"'انسولين الطلاب والرضع'!D11","v":0},{"$f":"'انسولين الطلاب والرضع'!E11","v":0},{"$f":"'انسولين الطلاب والرضع'!F11","v":0},{"$f":"'انسولين الطلاب والرضع'!G11","v":0},{"$f":"'انسولين الطلاب والرضع'!H11","v":0},{"$f":"'انسولين الطلاب والرضع'!I11","v":0},{"$f":"'انسولين الطلاب والرضع'!J11","v":0}]
[9,"انسولين كومب بنفيل","خرطوشة",{"$f":"'انسولين الطلاب والرضع'!C12","v":0},{"$f":"'انسولين الطلاب والرضع'!D12","v":0},{"$f":"'انسولين الطلاب والرضع'!E12","v":0},{"$f":"'انسولين الطلاب والرضع'!F12","v":0},{"$f":"'انسولين الطلاب والرضع'!G12","v":0},{"$f":"'انسولين الطلاب والرضع'!H12","v":0},{"$f":"'انسولين الطلاب والرضع'!I12","v":0},{"$f":"'انسولين الطلاب والرضع'!J12","v":0}]
[10,"انسولين مكستارد بنفيل","خرطوشة",{"$f":"'انسولين الطلاب والرضع'!C13","v":142},{"$f":"'انسولين الطلاب والرضع'!D13","v":14},{"$f":"'انسولين الطلاب والرضع'!E13","v":149},{"$f":"'انسولين الطلاب والرضع'!F13","v":19},{"$f":"'انسولين الطلاب والرضع'!G13","v":72},{"$f":"'انسولين الطلاب والرضع'!H13","v":12},{"$f":"'انسولين الطلاب والرضع'!I13","v":363},{"$f":"'انسولين الطلاب والرضع'!J13","v":45}]
[11,"انسولين اكترابيد بنفيل","خرطوشة",{"$f":"'انسولين الطلاب والرضع'!C14","v":258},{"$f":"'انسولين الطلاب والرضع'!D14","v":35},{"$f":"'انسولين الطلاب والرضع'!E14","v":232},{"$f":"'انسولين الطلاب والرضع'!F14","v":29},{"$f":"'انسولين الطلاب والرضع'!G14","v":306},{"$f":"'انسولين الطلاب والرضع'!H14","v":39},{"$f":"'انسولين الطلاب والرضع'!I14","v":796},{"$f":"'انسولين الطلاب والرضع'!J14","v":103}]
[12,"انسولين انسوليتارد بنفيل","خرطوشة",{"$f":"'انسولين الطلاب والرضع'!C15","v":15},{"$f":"'انسولين الطلاب والرضع'!D15","v":3},{"$f":"'انسولين الطلاب والرضع'!E15","v":16},{"$f":"'انسولين الطلاب والرضع'!F15","v":2},{"$f":"'انسولين الطلاب والرضع'!G15","v":29},{"$f":"'انسولين الطلاب والرضع'!H15","v":4},{"$f":"'انسولين الطلاب والرضع'!I15","v":60},{"$f":"'انسولين الطلاب والرضع'!J15","v":9}]
[null,"اجمالى الانسولين فيال وخراطيش",null,"الهلال",null,"منطقة سوهاج",null,"منطقة جرجا",null,"الإجمالى"]
[null,"انسولين 100 وحدة","فيال ",{"$f":"D4+D5+D6+D7+D9","v":7},2,17,5,{"$f":"H4+H5+H6+H7+H9","v":9},{"$f":"I4+I5+I6+I7+I9","v":3},{"$f":"J4+J5+J6+J7+J8+J9","v":844},{"$f":"K4+K5+K6+K7+K9","v":10}]
[null,"انسولين بنفل","خرطوشة",{"$f":"D8+D10+D11+D12+D13+D14+D15","v":721},{"$f":"E8+E10+E11+E12+E13+E14+E15","v":139},663,102,646,115,{"$f":"J10+J11+J12+J13+J14+J15","v":1219},356]

{"sheet":"تقارير الاصناف","index":6,"n_rows":23,"n_cols":5,"rows_kept":23,"cut":false,"hidden":false,"merged":[[0,0,0,2],[9,0,9,2],[13,0,13,2],[19,0,19,2],[20,0,20,1],[20,2,20,3]]}
["بيان بمنصرف صنفى اكس جاد وجادينيو عن شهر ",null,null,"مارس-2020"]
["اسم الصنف","الوحدة","الكمية المنصرفة","عدد الحالات","اجمالى التكلفة "]
["اكسى جاد 125مجم","شريط × 7قرص",{"$f":"الأصناف!C5","v":0},{"$f":"الأصناف!D5","v":0},{"$f":"الأصناف!E5","v":0}]
["اكسى جاد 250مجم","شريط × 7قرص",{"$f":"الأصناف!C6","v":56},{"$f":"الأصناف!D6","v":4},{"$f":"الأصناف!E6","v":7466.69}]
["اكسى جاد 500مجم","شريط × 7قرص",{"$f":"الأصناف!C7","v":50},{"$f":"الأصناف!D7","v":4},{"$f":"الأصناف!E7","v":12916.63}]
["جادينيو90مجم","ش×10ق",{"$f":"الأصناف!C13","v":63},{"$f":"الأصناف!D13","v":11},{"$f":"الأصناف!E13","v":6225.03}]
["جادينيو180مجم","ش×10ق",{"$f":"الأصناف!C14","v":93},{"$f":"الأصناف!D14","v":23},{"$f":"الأصناف!E14","v":17714.259999999998}]
["جادينيو360مجم","ش×10ق",{"$f":"الأصناف!C15","v":135},{"$f":"الأصناف!D15","v":30},{"$f":"الأصناف!E15","v":49821.3}]
[]
[" بيان بهرمون النمو الخاص بفرع سوهاج عن شهر ",null,null,"مارس-2020"]
["اسم الصنف","الوحدة","الكمية المنصرفة","عدد الحالات","اجمالى التكلفة "]
["هرمون النمو","فيال",{"$f":"الأصناف!C4","v":1685},{"$f":"الأصناف!D4","v":123},{"$f":"الأصناف!E4","v":136485}]
[]
["                             بيان بمنصرف ادوية الثلاثيميا عن شهر ",null,null,"مارس-2020"]
[null,"الصنف","الوحدة","الكمية المنصرفة","التكلفة"]
[null,"Desferal","فيال",{"$f":"الأصناف!C8","v":0},{"$f":"الأصناف!E8","v":0}]
[null,"Kelfer","ع×50ق",{"$f":"الأصناف!C10","v":0},{"$f":"الأصناف!E10","v":0}]
[]
[]
[" بيان بإحصائية الريبافيرين (400,200) مجم عن شهر ",null,null,"مارس-2020"]
["ريبافيرين 200مجم",null,"ريبافيرين400 مجم"]
["عدد الشرائط","التكلفة","عدد الشرائط","التكلفة"]
[{"$f":"الأصناف!C11","v":226},{"$f":"الأصناف!E11","v":888.18},{"$f":"الأصناف!C12","v":0},{"$f":"الأصناف!E12","v":0}]